Cogmind - Beta 15 @@@ ROGUE MODE // 2025.06.04 @ 09:25:24 Player: 7604 Result: Destroyed by 9O-HP1(R) with Subdweller Machine Gun Performance ------------- Evolutions (0) 0 Regions Visited (2) 400 Robots Destroyed (31) 155 Value Destroyed (678) 678 Prototype IDs (4) 80 Alien Tech Used (0) 0 Bonus (0) 0 TOTAL SCORE: 1313 Bonus ------- None Cogmind --------- Core Integrity 0/250 Matter 247/300 Energy 59/100 System Corruption 1% Temperature Cool (2) Movement Treading (320) Ox2 Location -10/Subcaves Parts ------- > --- POWER (1) -------- (None) > --- PROPULSION (2) --- Light Treads Light Treads > --- UTILITY (2) ------ Huge Storage Unit Seismic Detector > --- WEAPON (2) ------- Particle Gun Barrage Gun > --- INVENTORY (25) --- Light Treads Heat Sink Improved Heat Sink Scrap Shield Cobbler Unit Particle Gun Particle Gun Particle Gun Particle Gun Particle Gun Particle Gun Particle Gun Assault Rifle Rocket Launcher Rocket Launcher Rocket Launcher Rocket Launcher Mini Grenade Launcher Mini Grenade Launcher Mini Grenade Launcher Mining Laser Shrapnel Trap Peak State ------------ > --- POWER ------------ Light Nuclear Core > --- PROPULSION ------- Aluminum Leg Aluminum Leg > --- UTILITY ---------- Improved Heat Sink Large Storage Unit > --- WEAPON ----------- Particle Gun Particle Gun > --- INVENTORY -------- Light Ion Engine Light Ion Engine Light Treads Light Treads Seismic Detector Particle Gun Particle Gun Particle Gun Particle Gun Particle Gun Particle Gun Beam Cannon Light Assault Rifle Light Assault Rifle Grenade Launcher [Rating: 15] Favorites ----------- Power Ion Engine Engine Ion Engine Power Core Light Nuclear Core Propulsion Light Treads Treads Light Treads Leg Aluminum Leg Utility Seismic Detector Device Seismic Detector Storage Huge Storage Unit Weapon Particle Gun Energy Gun Particle Gun Ballistic Gun Light Assault Rifle Launcher Grenade Launcher Special Weapon Mining Laser Build | -11 -10 -10 ------- Run | Yrd Mat Sub Slots Evolved . | . . . Power . | . . . Propulsion . | . . . Utility . | . . . Weapon . | . . . Parts Attached 22 | 1 14 7 Power 3 | . 3 . Engine 2 | . 2 . Core 1 | . 1 . Reactor . | . . . Propulsion 3 | . 2 1 Treads 3 | . 2 1 Leg . | . . . Wheel . | . . . Hover . | . . . Flight . | . . . Utility 6 | 1 4 1 Device 4 | 1 2 1 Storage 2 | . 2 . Processor . | . . . Hackware . | . . . Protection . | . . . Artifact . | . . . Weapon 10 | . 5 5 Energy Gun 6 | . 4 2 Energy Cannon . | . . . Ballistic Gun 1 | . . 1 Ballistic Cannon . | . . . Launcher 2 | . 1 1 Special Weapon 1 | . . 1 Impact Weapon . | . . . Slashing Weapon . | . . . Piercing Weapon . | . . . Special Melee Weapon . | . . . Unidentified Prototypes . | . . . Parts Lost 5 | . 2 3 Power 3 | . 1 2 Propulsion 2 | . 1 1 Utility . | . . . Weapon . | . . . Highest Loss Streak 2 | . 2 2 To Critical Strikes . | . . . Average Backups 17 | 6 15 22 Power . | 1 1 . Propulsion 1 | 4 1 1 Utility 2 | . 2 3 Weapon 11 | 1 10 16 Tool/Special . | . . . Unused Backups 26 | 6 4 16 Power 1 | 1 . . Propulsion 6 | 2 3 1 Utility 4 | 1 . 3 Weapon 15 | 2 1 12 Tool/Special . | . . . Average Slot Usage (%) 99 | . 99 99 Engine 13 | . 12 13 Treads 23 | . 22 27 Leg 3 | . 5 . Device 14 | . 14 14 Storage 14 | . 14 14 Energy Gun 26 | . 27 26 Peak Build Rating 15 | 7 15 13 Average Rating 11 | 6 10 12 On Entrance 8 | 6 7 12 Naked Turns . | . . . Heaviest Build 92 | 11 92 92 Greatest Support 40 | 20 40 40 Greatest Overweight (x) 4 | . 4 4 Average Overweight (x) 1 | . . 2 Largest Inventory Capacity 25 | 8 25 25 Average Capacity 20 | 8 18 25 Most Carried 25 | 6 22 25 Average Carried 17 | 6 15 23 Final Capacity 25 | 8 25 25 Final Carried 24 | 6 22 24 Class Distribution -------------------- 100% | Mutant Dominant Class ---------------- Mutant | -10/Materials Mutant | -10/Subcaves Resources | -11 -10 -10 ----------- Run | Yrd Mat Sub Matter Collected 612 | 208 330 74 Remotely . | . . . Salvage Created 904 | 27 742 135 Parts 68 | 4 55 9 Haulers Intercepted 1 | . 1 . Recyclers Shooed 1 | 1 . . Parts Field Recycled . | . . . Retrieved Matter . | . . . Parts Self-Destructed 5 | . . 5 Prevented . | . . . Kills | -11 -10 -10 ------- Run | Yrd Mat Sub Combat Hostiles Destroyed 20 | . 17 3 Guns 16 | . 14 2 AOE 4 | . 3 1 Classes Destroyed 11 | 1 7 3 Worker 4 | . 4 . Builder 1 | . 1 . Tunneler 1 | 1 . . Hauler 1 | . 1 . Recycler 2 | . 2 . Watcher 2 | . 2 . Swarmer 6 | . 6 . Grunt 11 | . 11 . Artisan 1 | . . 1 Cobbler 1 | . . 1 Subdweller 3 | . . 3 Best Kill Streak 8 | 1 8 1 Combat Bots Only 5 | . 5 1 Max Kills in Single Turn 3 | 1 3 1 Gunslinging . | . . . Exploded 2 | . 2 1 Melee . | . . . Uniques/NPCs Destroyed . | . . . Combat | -11 -10 -10 -------- Run | Yrd Mat Sub Hostile Shots Fired 109 | . 83 26 Missed 25 | . 20 5 Hits 84 | . 63 21 Projectile 84 | . 63 21 AOE 1 | . . 1 Critical Strikes 1 | . . 1 Damage Taken 1225 | . 731 494 Core 260 | . 110 150 Absorbed by Shields . | . . . Regen/Repaired (Parts) 109 | . 109 . Core Remaining (%) 100 | 100 . . Volleys Fired 105 | 8 74 23 Largest 2 | 2 2 2 Hottest 130 | 60 130 130 Shots Fired 200 | 16 145 39 Gun 189 | 16 141 32 Cannon . | . . . Launcher 5 | . 4 1 Special 6 | . . 6 Kinetic 22 | 8 11 3 Thermal 173 | 8 130 35 Explosive 5 | . 4 1 Electromagnetic . | . . . Robot Hit Streak 13 | 3 13 7 Robot Miss Streak 6 | 3 6 2 Penetration Max . | . . . Secondary Targets . | . . . Shots Hit Robots 118 | 8 90 20 Core Hits 52 | 2 41 9 Critical Kills . | . . . Critical Parts Destroyed . | . . . Critical Strikes 6 | . 5 1 Burn 6 | . 5 1 Melee Attacks . | . . . Impact . | . . . Slashing . | . . . Piercing . | . . . Sneak Attacks . | . . . Combat Hostiles . | . . . Follow-up Attacks . | . . . Damage Inflicted 2164 | 71 1700 393 Guns 1677 | 71 1304 302 Cannons . | . . . Explosions 486 | . 395 91 Melee . | . . . Ramming 1 | . 1 . Kinetic 132 | 49 47 36 Thermal 1545 | 22 1257 266 Explosive 486 | . 395 91 Electromagnetic . | . . . Impact . | . . . Slashing . | . . . Piercing . | . . . Highest Corruption 1 | . 1 1 Average Corruption 1 | . 1 1 Corruption Purged . | . . . Corruption Blocked . | . . . Effects 23 | . 19 4 Message Errors 8 | . 7 1 Matter Fused 4 | . 4 . Heat Flow Errors 3 | . 3 . Energy Discharges 3 | . 2 1 Parts Rejected 1 | . 1 . Parts Fused 1 | . . 1 Data Loss (minor) 1 | . 1 . Misfires 1 | . 1 . Alerts 1 | . . 1 Overload Shots . | . . . Overflow Damage . | . . . Projectiles . | . . . Explosions . | . . . Melee . | . . . Knockbacks . | . . . Impact . | . . . Kinetic . | . . . Secondary . | . . . Self-Inflicted Damage . | . . . Shots . | . . . Rammed 1 | . 1 . Targets Rammed 1 | . 1 . Kicked . | . . . Crushed . | . . . Highest Temperature 334 | 20 334 45 Average Temperature 91 | 13 105 13 Received Heat Transfer 420 | . 348 72 Effects 4 | . 4 . Energy Bleed 1 | . 1 . Interference 3 | . 3 . Siege Activations . | . . . Martial Activations . | . . . Shielding Activations . | . . . Robots Disrupted . | . . . Combat Hostiles . | . . . Robots Corrupted . | . . . Combat Hostiles . | . . . Parts Fried . | . . . Impact Corruptions . | . . . Robots Melted . | . . . Combat Hostiles . | . . . Parts Melted 2 | . 2 . Heat Transferred 4112 | 50 3359 703 Parts Sabotaged . | . . . Parts Stolen . | . . . Parts Stripped . | . . . Power Chain Reactions . | . . . Alert | -11 -10 -10 ------- Run | Yrd Mat Sub Maximum Alert Level . | . . . Low Security (%) 100 | 100 100 . Level 1 . | . . . Level 2 . | . . . Level 3 . | . . . Level 4 . | . . . Level 5 . | . . . High Security . | . . . Max Security . | . . . Peak Influence 191 | 5 191 . Initial . | . . . Average 86 | . 88 . Influence Increases 601 | 5 596 . Destroy 0b10 Robot/C 340 | . 340 . Destroy 0b10 Robot/NC 55 | 5 50 . Destroy Leader 76 | . 76 . Successful Hack 24 | . 24 . Select Force Hacks 60 | . 60 . Disable Machine 15 | . 15 . Destroy Structure 16 | . 16 . Lose Combat Pursuer 15 | . 15 . Influence Decreases 601 | 5 479 117 Entered New Map 57 | . . 57 Time Decay 524 | 5 459 60 Lost Part 20 | . 20 . Squads Dispatched 2 | . 2 . Investigation 2 | . 2 . Extermination . | . . . Reinforcement . | . . . Assault . | . . . Garrison . | . . . Intercept . | . . . Searches Triggered . | . . . Construction Impeded . | . . . Haulers Reinforced . | . . . Active Scanning Responses . | . . . Cargo Convoy Interrupts . | . . . Stealth | -11 -10 -10 --------- Run | Yrd Mat Sub Distress Signals . | . . . Communications Jammed . | . . . Distress Signals . | . . . Times Spotted 34 | . 28 6 Peak Tracking Total 5 | . 5 4 Tactical Retreats 1 | . 1 . Traps | -11 -10 -10 ------- Run | Yrd Mat Sub Traps Triggered 1 | . 1 . Indirectly . | . . . Trap Hack Attempts . | . . . Triggered . | . . . Disarmed . | . . . Reprogrammed . | . . . Reused . | . . . Traps Extracted . | . . . Installed . | . . . Triggered . | . . . Most Traps Carried 1 | . . 1 Machines | -11 -10 -10 ---------- Run | Yrd Mat Sub Machines Disabled 1 | . 1 . Max in Single Turn 1 | . 1 . Machines Repaired . | . . . Machines Dismantled . | . . . Machines Sabotaged . | . . . Overloaded Fab Kills . | . . . Hacking | -11 -10 -10 --------- Run | Yrd Mat Sub Machines Accessed 11 | . 11 . Terminals 8 | . 8 . Fabricators . | . . . Repair Stations 1 | . 1 . Recycling Units 2 | . 2 . Scanalyzers . | . . . Garrison Access . | . . . Total Hacks 32 | . 32 . Successful 18 | . 18 . Failed 14 | . 14 . Catastrophic 4 | . 4 . Database Lockouts . | . . . Manual 18 | . 18 . Terminals 23 | . 23 . Fabricators . | . . . Repair Stations 5 | . 5 . Recycling Units 4 | . 4 . Scanalyzers . | . . . Garrison Access . | . . . Terminal Hacks 5 | . 5 . Robot Analysis 3 | . 3 . Prototype ID Bank 2 | . 2 . Fabricator Hacks . | . . . Repair Station Hacks 3 | . 3 . Scan Component 2 | . 2 . Repair 1 | . 1 . Recycling Unit Hacks . | . . . Scanalyzer . | . . . Garrison Access Hacks . | . . . Unauthorized Hacks 10 | . 10 . Terminals 8 | . 8 . Botnet 2 | . 2 . Operators 1 | . 1 . Skim 5 | . 5 . Fabricators . | . . . Repair Stations . | . . . Recycling Units 2 | . 2 . Tunnel 2 | . 2 . Scanalyzers . | . . . Garrison Access . | . . . Data Cores Recovered . | . . . Used . | . . . Hacking Detections 11 | . 11 . Full Trace Events . | . . . Feedback Events . | . . . Feedback Blocked . | . . . Robot Schematics Acquired . | . . . Robots Built . | . . . Authchips . | . . . Time . | . . . Total Robot Build Rating . | . . . Part Schematics Acquired . | . . . Parts Built . | . . . Authchips . | . . . Time . | . . . Total Part Build Rating . | . . . Parts Repaired 1 | . 1 . Time 26 | . 26 . Parts Recycled . | . . . Recycled Matter . | . . . Retrieved Matter . | . . . Retrieved Components . | . . . Parts Scanalyzed . | . . . Part Schematics Acquired . | . . . Parts Damaged . | . . . Bothacking | -11 -10 -10 ------------ Run | Yrd Mat Sub Used RIF Installer . | . . . Robots Hacked . | . . . Non-combat . | . . . Combat . | . . . Robot Hacks Applied . | . . . Relay Couplers Released . | . . . Fabnet Peak Effective % . | . . . Robots Rewired . | . . . Allies Hacked . | . . . Hacks Repelled . | . . . Allies | -11 -10 -10 -------- Run | Yrd Mat Sub Total Allies . | . . . Largest Group . | . . . Highest-Rated Group . | . . . Highest-Rated Ally . | . . . Total Orders . | . . . Ally Attacks . | . . . Total Damage . | . . . Kills . | . . . Allies Corrupted . | . . . Allies Melted . | . . . Intel | -11 -10 -10 ------- Run | Yrd Mat Sub Active Infowar (turns) 3954 | 3 2696 1255 Structural 244 | . . 244 Seismic 3710 | 3 2696 1011 Robot Analysis Total 3 | . 3 . Derelict Logs Recovered . | . . . Drone Launches . | . . . Drone Recoveries . | . . . Exploration | -11 -10 -10 ------------- Run | Yrd Mat Sub Turns Passed 4226 | 53 2917 1256 Spaces Moved 1509 | 25 1132 352 Core . | . . . Treads 1185 | . 833 352 Legs 324 | 25 299 . Wheels . | . . . Hover . | . . . Flight . | . . . Fastest Speed 120 | 120 120 320 Average Speed 232 | 120 207 321 Slowest Speed 480 | 120 480 480 Overloaded Moves . | . . . Propulsion Burnouts . | . . . Robots Hopped . | . . . Potential Cave-ins . | . . . Cave-ins Triggered . | . . . Exploration Rate (%) 39 | 4 99 14 Regions Visited 2 Branch Regions 1 Pre-discovered Areas 2 | . 2 . Known Exits Taken . | . . . Unknown Exits Taken 2 | 1 1 . Scrap Searched . | . . . Spaces Dug 4 | . 4 . Terrain Destroyed 18 | . 15 3 Melee . | . . . Projectile . | . . . AOE 18 | . 15 3 Terrain Rammed . | . . . Walls Destroyed . | . . . Machines Disabled . | . . . Actions | -11 -10 -10 --------- Run | Yrd Mat Sub Total 2011 | 33 1555 423 Wait 317 | . 287 30 Move 1507 | 24 1131 352 Hop . | . . . Pick Up 28 | . 24 4 Fast Attach 3 | 1 2 . Attach 5 | . 2 3 Detach 1 | . . 1 Swap 30 | . 21 9 Drop 14 | . 13 1 Fire 105 | 8 74 23 Melee . | . . . Ram . | . . . Kick . | . . . Crush 1 | . 1 . Escape Stasis . | . . . Rewire . | . . . Trap . | . . . Miscellaneous . | . . . Route ------- -11/Scrapyard -10/Materials (discovered 6 exits: *Mat x3 / [*Min x2] / [*Sub]) -10/Subcaves (discovered 3 exits: *Mat x2 / Rec) History --------- Turn | Location | Event 1 | -11/Scrapyard | Discovered new exit (range 2) 54 | -11/Scrapyard | Entered Materials 285 | -10/Materials | Discovered new exit (range 16) 311 | -10/Materials | Build established: Mutant 766 | -10/Materials | Discovered new exit (range 15) 1754 | -10/Materials | Discovered new exit (range 11) 2211 | -10/Materials | Discovered new exit (range 16) 2437 | -10/Materials | Learned 4 Subcaves zone layouts 2504 | -10/Materials | Learned location of 1 exit from Recycling 2513 | -10/Materials | Discovered new exit (range 16) 2562 | -10/Materials | Learned location of 2 exits from Subcaves 2574 | -10/Materials | Repaired Lgt. Treads 2611 | -10/Materials | Learned 2 Mines zone layouts 2677 | -10/Materials | Loaded intel: 19 trap records 2694 | -10/Materials | Identified exit to Materials 2762 | -10/Materials | Learned location of 1 exit from Storage 2812 | -10/Materials | Learned 4 Recycling zone layouts 2952 | -10/Materials | Discovered new exit (range 7) 2971 | -10/Materials | Entered Subcaves 2972 | -10/Subcaves | Approached by a straggling Scientist 2972 | -10/Subcaves | Identified exit to Materials 2973 | -10/Subcaves | Identified exit to Recycling 3558 | -10/Subcaves | Shifting Twisted Machinery released Barrage Gun 3706 | -10/Subcaves | A swath of the cavern ceiling suddenly collapsed 4193 | -10/Subcaves | Core integrity fell below 50% 4211 | -10/Subcaves | A Subdweller sparked back to life 4211 | -10/Subcaves | A Subdweller sparked back to life 4214 | -10/Subcaves | Core integrity fell below 20% 4227 | -10/Subcaves | Destroyed by 9O-HP1(R) with Subdweller Machine Gun Last Messages --------------- 9P-BEW(c): "I think it's somewhere east of here" 04099_ ZO-M3Q(O) cries out in pain. 04099_ ZO-M3Q(O) destroyed. 04104_ Subatomizers dissect the Sub. Machine Gun. 04121_ Acquired 34 matter. 04127_ Subatomizers dissect the Sub. Machine Gun. 04127_ Acquired Cobbler Unit. 04137_ Subatomizers dissect the Sub. Machine Gun. 9P-BEW(c): "I think it's somewhere east of here" 04158_ Q2-987(R): "OHNO!" 04173_ Q2-987(R) destroyed. 04190_ Lgt. Treads destroyed. 04203_ Tech Extrapolator violently self-destructs. 04211_ N5-HDY(R) creaks and sparks as it begins to move. 04211_ P2-9JJ(R) creaks and sparks as it begins to move. 04211_ UA-TQR(R) suffers critical hit (Burn). 04214_ Lgt. Ion Engine destroyed. 04214_ P2-9JJ(R) destroyed. 04214_ N5-HDY(R) destroyed. 04216_ UA-TQR(R) destroyed. Map ----- +----------------------------------------------------+ | ?????????????????????????????????????????????????? | | ????????????????????????????????#####????????????? | | ???????????????????????????????######????????????? | | ???????????????????????????????###"##????????????? | | ???????????????????????????????##"###????????????? | | ???????????????????????????????##"###????????????? | | ???????????????????????????????##""###?????####### | | ???????????????????????????????###"###????######## | | ???????????????????????????????####"######### ## | | ????????????????????????????????##"######### # | | ????????????????????????????????##"""#### # | | ????????????????????????????????###"# # | | ????????????????????????????????#### # | | ?????????????????????????????????### ##### # | | ?????????????????????????????????## ###### # | | ?????????????????????????????????### ### ## | | ????????????# #?###??????????????## #### ## | | ??????????### ; # #?????????????### ## ### ## | | ??????????? ????????????### ####### | | ???????????" ] ####????????### ####### | | ???????????? % *! #????????## # #[ ###??? | | ???????????# &%= ####?????##### ####?? | | ???????????# &] # ##???#### ####? | | ???????????? ;;;; ####### ###? | | ?????????????????# R ;; ##### ##? | | ####???????????????# @ ; ### ##? | | " #####??###??????# ; % ;## ! ##? | | ""#"""##" ????## #;;* ;# [ & ###? | | """""" ??## ## # ## ##### | | " "" ### ### ##### | | ## "######??# #! =% [ ## " ## | | "### "###????###%[ ### # " " # | | ### " ##?### &!###### ## "] # | | ###"" ### #???## ### # | | " " ### ##??## #### ## # | | "" # # #??## ###### #### ## | | ## ## ##??## ################ | | "## ## #??### ############## | | "### ########## #???### #???????????? | | ##?###????????######???####### #???????????? | | #????????????????????????###?# ##??????????? | | ##????????????????????????????### ##?????????? | | ????????????????????????????????# #?????????? | | ???????????????????????????????## ##????????? | | ???????????????????????????????# ###??????? | | ???????????????????????????????### #??????? | | ?????????????????????????????????# ## #?????? | | ????????????????????????????????## ### ##?????? | | ????????????????????????????????# #?####??????? | | ????????????????????????????????## ##???????????? | +----------------------------------------------------+ Best States ------------- Heat Dissipation 39 Energy Generation 14 Energy Capacity 250 Matter Stores 300 Matter Capacity 300 Sight Range 16 Terrain Scan Density 10 Evasion (%) 55 Recoil Reduction 2 Item Schematics ----------------- None Robot Schematics ------------------ None Fabricated ------------ Nothing Repaired ---------- Lgt. Treads | 22% | -10/Materials Alien Tech Used ----------------- None Achievements -------------- None Challenges ------------ None Game ------ Seed NetworkCorruptionCompanion Manual? 0 Play Time 00:17:36 Cumulative 419.5 hours Start 2025.06.04 @ 09:08:39 End 2025.06.04 @ 09:25:24 Sessions 1 Manual Loads 0 Difficulty Rogue Special Mode None Game No. 209 Rogue 146 Adventurer 63 Explorer 0 Win Type - Total 9 Types 8/0/0/1/0/0/0/0/0/0 Lore% 86 Gallery% 78 Achievement% 66 Wizard Run 0 Options --------- Layout 0 ASCII 0 Keyboard 1 Movement Numpad Keybinds 0 Fullscreen 1 Font 18/Terminus Map View 76x50 Zoom Use 0% Tactical HUD 1 Map Filters NONE Filters NONE Steam 1 RUN: 9d40e287-6ece-44c5-8655-7ee2ced0646e